bitfinex-derivatives/quotes_BTCF0:USTF0_20210104
["timestamp","ask_amount","ask_price","bid_price","bid_amount"]
[1609747099674,0.0926,31981.0,31976.0,0.14033567]
[1609747100176,0.0926,31981.0,31978.0,1.0]
[1609747100475,0.0926,31981.0,31980.0,0.6247]
[1609747100875,0.14033567,31985.0,31980.0,0.6247]
[1609747102678,0.13513,31988.0,31984.0,0.14033567]
[1609747103279,0.0945,31987.0,31984.0,0.14033567]
[1609747103480,0.13513,31988.0,31984.0,0.14033567]
[1609747103678,1.0,31993.0,31984.0,0.14033567]
[1609747104278,1.0,32004.0,31988.0,1.0]
[1609747104478,1.0935,32004.0,31988.0,1.0]
[1609747104678,0.14033567,31989.0,31988.0,1.0]
[1609747104879,0.23333567,31989.0,31988.0,1.0]
[1609747105780,0.14033567,31989.0,31988.0,1.0]
[1609747106180,0.14033567,31989.0,31980.0,0.6247]
[1609747106582,0.15864,31995.0,31984.0,0.14033567]
[1609747108181,1.15864,31995.0,31984.0,0.14033567]
[1609747108584,0.14033567,31989.0,31984.0,0.14033567]
[1609747110284,0.14033567,31989.0,31987.0,1.0]
[1609747110684,0.14033567,31989.0,31988.0,0.14033567]
[1609747112987,0.14033567,31989.0,31988.0,4.88643567]
[1609747114488,0.15864,31995.0,31988.0,4.88643567]
[1609747114690,0.15864,31995.0,31994.0,0.14033567]
[1609747114889,1.0,32002.0,31994.0,0.14033567]
[1609747115089,1.0,32002.0,31994.0,3.69533567]
[1609747115491,1.0,32002.0,31994.0,0.14033567]
[1609747116291,2.60417834,32022.0,31994.0,0.14033567]
[1609747116694,2.60417834,32022.0,31992.0,4.2025]
[1609747117796,0.14033567,32023.0,31992.0,4.2025]
[1609747118594,0.10391,32025.0,32019.0,0.14033567]
[1609747118794,0.2712,32031.0,32019.0,0.14033567]
[1609747118997,0.2854,32042.0,32019.0,0.14033567]
[1609747119796,0.2854,32042.0,32017.0,3.6644]
[1609747119996,0.44407,32042.0,32017.0,3.6644]
[1609747120598,0.14033567,32018.0,32017.0,3.6644]
[1609747121001,0.25948567,32018.0,32017.0,3.6644]
[1609747121601,0.35268567,32018.0,32017.0,3.6644]
[1609747122602,0.25948567,32018.0,32008.0,0.14033567]
[1609747123003,0.25948567,32018.0,31999.0,3.6172]
[1609747124006,0.25948567,32018.0,31988.0,0.0259]
[1609747124206,1.0,32000.0,31988.0,0.0259]
[1609747124408,1.09923,32000.0,31988.0,0.0259]
[1609747124606,0.14033567,31995.0,31993.0,0.14033567]
[1609747126209,0.14033567,31995.0,31994.0,4.7153]
[1609747128210,0.14033567,31995.0,31988.0,0.0259]
[1609747128410,0.23383567,31995.0,31988.0,0.0259]
[1609747128812,0.0935,31995.0,31992.0,0.14033567]
[1609747130611,0.23383567,31995.0,31992.0,0.14033567]
[1609747130911,0.23383567,31995.0,31994.0,4.6322]
[1609747131412,0.0935,31995.0,31994.0,4.6322]
[1609747131814,0.09923,32000.0,31994.0,4.6322]
[1609747132014,0.2717,32016.0,31994.0,4.6322]
[1609747132214,1.0,32015.0,31994.0,5.6322]
[1609747132616,1.0,32015.0,32010.0,0.14033567]
[1609747132816,1.0,32015.0,32011.0,0.5296]
[1609747134217,0.2814,32030.0,32011.0,0.5296]
[1609747134719,0.14033567,32013.0,32010.0,0.14033567]
[1609747134920,0.27926567,32013.0,32012.0,4.9055]
[1609747135319,0.13893,32013.0,32012.0,4.9055]
[1609747136120,0.13893,32013.0,32012.0,5.9055]
[1609747136319,0.23123,32013.0,32012.0,5.9055]
[1609747137321,0.13893,32013.0,32012.0,5.9055]
[1609747138222,0.13893,32013.0,32010.0,0.14033567]
[1609747138422,0.23313,32013.0,32010.0,0.14033567]
[1609747138621,0.10133,32013.0,32010.0,0.14033567]
[1609747139223,0.1009,32013.0,32010.0,0.14033567]
[1609747139624,0.1009,32013.0,32010.0,0.88233567]
[1609747140924,0.1009,32013.0,32010.0,0.14033567]
[1609747141325,0.1009,32013.0,32012.0,4.5729]
[1609747142527,0.2839,32055.0,32012.0,4.5729]
[1609747142729,0.2839,32055.0,32037.0,0.14033567]
[1609747142929,2.61442622,32057.0,32037.0,0.14033567]
[1609747143332,2.62163576,32061.0,32037.0,0.14033567]
[1609747143730,0.0937,32060.0,32037.0,0.14033567]
[1609747143931,0.14361,32060.0,32051.0,3.7058]
[1609747144730,0.14361,32060.0,32059.0,0.14033567]
[1609747144930,0.14361,32060.0,32051.0,3.7058]
[1609747145130,0.14361,32060.0,32025.0,0.13487]
[1609747145330,0.14361,32060.0,32029.0,3.5789]
[1609747148137,0.14361,32060.0,32050.0,1.0]
[1609747148537,0.14361,32060.0,32053.0,4.1316]
[1609747148737,0.14361,32060.0,32059.0,0.14033567]
[1609747148938,0.14033567,32062.0,32059.0,0.14033567]
[1609747152039,0.14033567,32062.0,32032.0,0.13692]
[1609747152243,0.28750567,32062.0,32032.0,0.13692]
[1609747152444,0.28750567,32062.0,32030.0,5.0403]
[1609747152842,0.14717,32062.0,32030.0,5.0403]
[1609747153652,0.14717,32062.0,32026.0,0.1771]
[1609747153847,0.14717,32062.0,32043.0,4.1459]
[1609747154245,0.14717,32062.0,32026.0,0.1771]
[1609747154246,0.14717,32062.0,32053.0,0.5109]
[1609747154844,0.14717,32062.0,32061.0,0.14033567]
[1609747155645,0.14717,32062.0,32053.0,0.5109]
[1609747156945,0.14717,32062.0,32035.0,0.15596]
[1609747157147,0.14717,32062.0,32039.0,4.8642]
[1609747157346,0.2988,32081.0,32039.0,4.8642]
[1609747157747,0.2988,32081.0,32026.0,0.1771]
[1609747157949,0.43144,32077.0,32041.0,4.744]
[1609747158147,0.43144,32077.0,32026.0,0.1771]
[1609747158347,0.43144,32077.0,32046.0,3.9073]
[1609747158548,0.43144,32077.0,32026.0,0.1771]
[1609747158751,0.14033567,32046.0,32044.0,0.14033567]
[1609747158948,0.24465567,32046.0,32044.0,0.14033567]
[1609747159548,0.24465567,32046.0,32036.0,5.0618]
[1609747160848,0.10432,32046.0,32044.0,0.14033567]
[1609747162350,0.10432,32046.0,32045.0,0.7117]
[1609747162952,0.24465567,32046.0,32045.0,0.7117]
[1609747163351,0.24465567,32046.0,32036.0,1.0]
[1609747164256,0.24465567,32046.0,32037.0,5.1233]
[1609747164656,0.10432,32046.0,32037.0,5.1233]
[1609747164856,0.14033567,32052.0,32045.0,0.14033567]
[1609747166157,0.14033567,32052.0,32049.0,1.0]
[1609747166959,0.14033567,32052.0,32050.0,0.14033567]
[1609747168463,0.14033567,32052.0,32046.0,0.7153]
[1609747168863,0.14033567,32047.0,32046.0,0.7153]
[1609747169065,0.29860567,32047.0,32046.0,0.7153]
[1609747171170,0.15827,32047.0,32046.0,0.7153]
[1609747172871,0.15827,32047.0,32046.0,0.85563567]
[1609747174176,0.09825,32054.0,32046.0,0.85563567]
[1609747174375,0.15355,32047.0,32046.0,0.85563567]
[1609747178180,0.14033567,32051.0,32047.0,1.0]
[1609747179881,0.0942,32050.0,32047.0,1.0]
[1609747180281,1.0,32048.0,32030.0,4.0595]
[1609747180880,0.14033567,32031.0,32030.0,4.0595]
[1609747181581,0.14033567,32031.0,32025.0,0.14033567]
[1609747181984,0.23493567,32031.0,32006.0,5.3003]
[1609747182183,0.14033567,32031.0,32006.0,5.3003]
[1609747182583,0.14033567,32031.0,32006.0,5.1232]
[1609747182983,0.13805,32032.0,32021.0,0.14033567]
[1609747183584,0.13805,32032.0,32006.0,5.1232]
[1609747184184,1.0,32023.0,32007.0,1.0]
[1609747184386,0.0944,32022.0,32007.0,1.0]
[1609747184986,0.0944,32022.0,32015.0,0.14033567]
[1609747186197,0.0944,32022.0,32021.0,4.9917]
[1609747186889,0.0944,32022.0,32021.0,5.13203567]
[1609747187289,0.0946,32027.0,32021.0,5.13203567]
[1609747187992,0.0946,32027.0,32021.0,0.14033567]
[1609747188191,1.0,32043.0,32027.0,1.0]
[1609747188891,1.0,32043.0,32039.0,0.14033567]
[1609747189091,1.0,32043.0,32027.0,1.0]
[1609747189292,1.11372,32043.0,32033.0,4.4285]
[1609747190191,0.11372,32043.0,32042.0,1.0]
[1609747190591,2.6707208,32059.0,32042.0,1.0]
[1609747190992,2.6707208,32059.0,32058.0,0.14033567]
[1609747194200,2.6707208,32059.0,32058.0,1.14033567]
[1609747195804,2.66754293,32066.0,32058.0,1.14033567]
[1609747196205,2.66754293,32066.0,32058.0,0.14033567]
[1609747196605,1.0,32068.0,32058.0,0.14033567]
[1609747197005,1.0,32068.0,32066.0,0.14033567]
[1609747198309,0.286,32081.0,32066.0,0.14033567]
[1609747199109,0.14033567,32067.0,32066.0,0.14033567]
[1609747199510,0.15734,32072.0,32066.0,0.14033567]
[1609747200214,0.15734,32072.0,32070.0,1.0]
[1609747201113,0.15734,32072.0,32071.0,0.14033567]
[1609747201715,1.0,32086.0,32071.0,0.14033567]
[1609747202316,0.2907,32087.0,32071.0,0.14033567]
[1609747203016,0.2907,32087.0,32086.0,0.14033567]
[1609747203815,0.14033567,32094.0,32086.0,0.14033567]
[1609747204018,2.71466173,32104.0,32086.0,0.14033567]
[1609747204214,2.71466173,32104.0,32086.0,1.14033567]
[1609747204815,2.71449928,32105.0,32086.0,1.14033567]
[1609747205017,2.71449928,32105.0,32102.0,0.14033567]
[1609747205717,2.7140622,32109.0,32102.0,0.14033567]
[1609747206218,2.71390936,32115.0,32102.0,0.14033567]
[1609747207221,2.71303099,32124.0,32088.0,0.16066]
[1609747207822,2.71243589,32131.0,32088.0,0.16066]
[1609747208221,2.71243589,32131.0,32123.0,6.0]
[1609747209023,2.71193405,32138.0,32123.0,6.0]
[1609747209222,2.71193405,32138.0,32129.0,0.14033567]
[1609747209824,2.71530317,32146.0,32129.0,0.14033567]
[1609747211024,0.14033567,32144.0,32139.0,0.14033567]
[1609747211327,0.24065567,32144.0,32139.0,0.14033567]
[1609747213129,0.24065567,32144.0,32143.0,0.14033567]
[1609747214532,0.10032,32144.0,32143.0,0.14033567]
[1609747215632,2.79483293,32198.0,32143.0,0.14033567]
[1609747215833,0.2812,32197.0,32143.0,0.28107567]
[1609747216035,0.69584,32197.0,32143.0,0.28107567]
[1609747217237,0.14033567,32181.0,32143.0,0.14074]
[1609747217438,0.28141567,32181.0,32167.0,1.0]
[1609747219237,0.14108,32181.0,32167.0,1.0]
[1609747219437,0.14108,32181.0,32150.0,0.15962]
[1609747220639,0.69584,32197.0,32150.0,0.15962]
[1609747220838,0.69584,32197.0,32180.0,1.0]
[1609747221238,0.69584,32197.0,32187.0,0.14033567]
[1609747221438,0.41464,32197.0,32180.0,1.0]
[1609747222839,0.41464,32197.0,32196.0,6.0]
[1609747223241,0.25867567,32197.0,32196.0,6.0]
[1609747224843,0.25867567,32197.0,32150.0,0.15962]
[1609747225244,0.14033567,32164.0,32163.0,0.14033567]
[1609747225643,0.14354,32170.0,32163.0,0.14033567]
[1609747226043,0.14354,32170.0,32163.0,6.14033567]
[1609747226645,0.14354,32170.0,32163.0,6.0]
[1609747227245,0.14033567,32164.0,32163.0,6.0]
[1609747227646,0.14033567,32164.0,32163.0,4.619]
[1609747228047,0.14033567,32164.0,32120.0,1.0]
[1609747228847,0.14033567,32164.0,32121.0,0.1771]
[1609747229248,0.14354,32170.0,32121.0,0.1771]
[1609747229952,0.14354,32170.0,32135.0,1.0]
[1609747230569,0.2744,32235.0,32135.0,1.0]
[1609747231953,0.2744,32235.0,32136.0,0.2779]
[1609747234052,1.0,32226.0,32210.0,1.0]
[1609747234253,1.12721,32226.0,32136.0,0.2779]
[1609747235153,0.14033567,32163.0,32159.0,0.14033567]
[1609747235352,0.14033567,32163.0,32136.0,0.2779]
[1609747235553,0.10065,32179.0,32136.0,0.2779]
[1609747237157,0.10065,32179.0,32178.0,0.14033567]
[1609747237754,0.14033567,32193.0,32178.0,0.14033567]
[1609747237954,0.12721,32226.0,32178.0,0.14033567]
[1609747239157,0.14033567,32213.0,32212.0,0.14033567]
[1609747239364,0.12213,32213.0,32212.0,0.14033567]
[1609747240060,0.12213,32213.0,32179.0,0.2741]
[1609747241461,0.12213,32213.0,32194.0,0.14289]
[1609747242560,0.12213,32213.0,32179.0,0.2741]
[1609747243164,0.14033567,32180.0,32179.0,0.2741]
[1609747243364,0.15962,32188.0,32179.0,0.2741]
[1609747245267,0.15962,32188.0,32187.0,0.14033567]
[1609747245669,0.12213,32213.0,32187.0,0.14033567]
[1609747246067,0.12721,32226.0,32187.0,0.14033567]
[1609747246269,0.2744,32235.0,32187.0,0.14033567]
[1609747247367,0.2744,32235.0,32198.0,0.14033567]
[1609747249276,0.14033567,32239.0,32195.0,0.15911]
[1609747250668,4.52396333,32319.0,32195.0,0.15911]
[1609747250867,2.82297734,32239.0,32195.0,0.15911]
[1609747251268,2.82297734,32239.0,32238.0,0.14033567]
[1609747251470,0.09764,32244.0,32228.0,0.14242]
[1609747252973,0.09764,32244.0,32221.0,0.11258]
[1609747253273,0.09764,32244.0,32241.0,0.14033567]
[1609747253775,0.09764,32244.0,32221.0,0.11258]
[1609747255274,0.14033567,32243.0,32240.0,0.14033567]
[1609747256275,0.09764,32244.0,32240.0,0.14033567]
[1609747256474,2.79948693,32298.0,32240.0,0.14033567]
[1609747257276,0.14033567,32257.0,32246.0,0.14033567]
[1609747257476,0.27672567,32257.0,32246.0,0.14033567]
[1609747258377,0.27672567,32257.0,32230.0,0.09932]
[1609747259280,0.14033567,32247.0,32238.0,0.14033567]
[1609747259680,0.14033567,32247.0,32221.0,0.11258]
[1609747259880,0.14033567,32247.0,32196.0,0.1771]
[1609747260080,0.10406,32248.0,32196.0,0.1771]
[1609747260279,0.10406,32248.0,32199.0,4.1744]
[1609747261384,0.10406,32248.0,32247.0,0.14033567]
[1609747261586,0.14033567,32259.0,32247.0,0.15429]
[1609747261884,3.5597,32280.0,32247.0,0.15429]
[1609747262585,3.5597,32280.0,32232.0,0.15381]
[1609747262785,3.70067,32280.0,32232.0,0.15381]
[1609747263185,3.70067,32280.0,32199.0,4.1744]
[1609747263388,0.14033567,32208.0,32200.0,0.14033567]
[1609747263585,0.13147,32223.0,32200.0,0.14033567]
[1609747264187,0.13147,32223.0,32205.0,4.4359]
[1609747264387,0.13147,32223.0,32200.0,0.14033567]
[1609747264587,0.0192,32247.0,32205.0,0.14074]
[1609747265387,0.0192,32247.0,32246.0,0.14033567]
[1609747266889,0.0192,32247.0,32246.0,0.28951567]
[1609747267691,0.14097,32280.0,32246.0,0.28951567]
[1609747267891,2.79072103,32320.0,32246.0,0.28951567]
[1609747268091,2.79072103,32320.0,32250.0,3.8235]
[1609747268792,0.558,32319.0,32250.0,3.8235]
[1609747269192,0.71679,32319.0,32250.0,3.8235]
[1609747269392,0.14033567,32279.0,32250.0,3.8235]
[1609747269593,0.12258,32279.0,32246.0,0.14918]
[1609747270697,0.14642,32287.0,32246.0,0.14918]
[1609747271297,0.14642,32287.0,32286.0,0.14033567]
[1609747273197,0.15879,32319.0,32286.0,0.14033567]
[1609747273398,0.14033567,32318.0,32316.0,0.14033567]
[1609747273599,0.15879,32319.0,32316.0,0.14033567]
[1609747273799,0.15879,32319.0,32300.0,4.2083]
[1609747274198,2.79162573,32343.0,32300.0,4.2083]
[1609747274599,0.07138299,34459.0,32300.0,4.2083]
[1609747274600,2.79142553,32352.0,32300.0,4.2083]
[1609747275502,2.79076574,32354.0,32300.0,4.2083]
[1609747275701,2.79076574,32354.0,32334.0,0.14033567]
[1609747276103,1.0,32364.0,32323.0,4.8898]
[1609747276601,2.79027695,32369.0,32323.0,4.8898]
[1609747277705,0.14033567,32340.0,32334.0,0.14033567]
[1609747277904,0.29148567,32340.0,32323.0,4.8898]
[1609747278103,0.29148567,32340.0,32293.0,0.14242]
[1609747278305,0.29148567,32340.0,32298.0,4.9625]
[1609747278504,0.29148567,32340.0,32293.0,0.14242]
[1609747278705,0.29148567,32340.0,32286.0,0.12073]
[1609747279205,0.29148567,32340.0,32279.0,0.15222]
[1609747279405,0.29148567,32340.0,32269.0,3.5549]
[1609747279806,0.15115,32340.0,32299.0,0.14033567]
[1609747280607,0.15115,32340.0,32290.0,3.7046]
[1609747281707,0.14033567,32325.0,32318.0,0.14033567]
[1609747281907,0.28853567,32325.0,32318.0,0.14033567]
[1609747282908,0.1482,32325.0,32318.0,0.14033567]
[1609747283107,0.1482,32325.0,32290.0,3.7046]
[1609747283809,0.1482,32325.0,32324.0,0.14033567]
[1609747285212,0.15115,32340.0,32324.0,0.14033567]
[1609747285410,2.76542539,32386.0,32324.0,0.14033567]
[1609747285611,7.26502539,32386.0,32324.0,0.14033567]
[1609747285811,0.14033567,32346.0,32345.0,0.14033567]
[1609747286011,0.26999567,32346.0,32345.0,0.14033567]
[1609747286211,0.26999567,32346.0,32313.0,4.0572]
[1609747286411,0.26999567,32346.0,32296.0,0.13864]
[1609747287817,0.12966,32346.0,32288.0,0.14608]
[1609747288020,4.7239,32334.0,32288.0,0.14608]
[1609747288234,4.83318,32334.0,32272.0,0.11866]
[1609747288424,0.10928,32334.0,32261.0,0.1771]
[1609747288623,4.3741,32314.0,32261.0,0.1771]
[1609747288820,4.49759,32314.0,32261.0,0.1771]
[1609747289217,0.12349,32314.0,32261.0,0.1771]
[1609747289425,5.0171,32294.0,32261.0,0.1771]
[1609747289619,5.12559,32294.0,32243.0,1.84973385]
[1609747289820,0.14033567,32244.0,32243.0,1.84973385]
[1609747290019,0.28717567,32244.0,32236.0,1.85774357]
[1609747290218,4.3254,32247.0,32236.0,1.85774357]
[1609747290421,0.14724,32244.0,32236.0,1.85774357]
[1609747290620,0.14724,32244.0,32231.0,0.1771]
[1609747291019,0.14724,32244.0,32203.0,0.1771]
[1609747291820,0.14724,32244.0,32243.0,0.14033567]
[1609747292020,0.14724,32244.0,32230.0,0.10834]
[1609747293825,0.14724,32244.0,32243.0,0.14033567]
[1609747294924,0.10185,32251.0,32243.0,0.14033567]
[1609747295125,0.10185,32251.0,32230.0,0.10834]
[1609747295927,0.10185,32251.0,32250.0,0.14033567]
[1609747296327,0.14033567,32259.0,32250.0,0.14033567]
[1609747296728,3.8141,32296.0,32250.0,0.14033567]
[1609747296928,2.80061098,32325.0,32250.0,0.14033567]
[1609747297129,2.80051787,32332.0,32250.0,4.87363567]
[1609747297928,3.5309,32343.0,32309.0,0.14033567]
[1609747298131,2.79871842,32351.0,32309.0,0.14033567]
[1609747298731,2.79848968,32360.0,32309.0,0.14033567]
[1609747299429,3.9281,32361.0,32309.0,0.14033567]
[1609747299829,3.9281,32361.0,32315.0,0.14033567]
[1609747300029,3.9281,32361.0,32285.0,3.6138]
[1609747300229,4.05035,32361.0,32285.0,3.6138]
[1609747301929,4.05035,32361.0,32313.0,0.14033567]
[1609747302132,4.05035,32361.0,32285.0,3.6138]
[1609747303833,4.05035,32361.0,32312.0,0.14033567]
[1609747305637,0.12225,32361.0,32312.0,0.14033567]
[1609747305837,2.80573488,32367.0,32337.0,0.14033567]
[1609747306037,2.80573488,32367.0,32304.0,4.1935]
[1609747306238,0.14157,32367.0,32304.0,4.1935]
[1609747306639,1.0,32363.0,32304.0,4.1935]
[1609747307239,1.0,32363.0,32288.0,0.14737]
[1609747307839,1.0,32363.0,32319.0,0.14033567]
[1609747308338,1.0,32363.0,32288.0,0.14737]
[1609747308739,0.14157,32367.0,32278.0,4.3963]
[1609747309540,0.14157,32367.0,32278.0,4.50127]
[1609747311341,4.4653,32369.0,32278.0,4.50127]
[1609747311842,4.4653,32369.0,32319.0,0.14033567]
[1609747312241,4.4653,32369.0,32296.0,0.10131]
[1609747312440,4.62281,32369.0,32296.0,0.10131]
[1609747312641,1.0,32341.0,32296.0,0.10131]
[1609747312942,1.10582,32341.0,32296.0,0.10131]
[1609747313143,1.10582,32341.0,32278.0,4.50127]
[1609747313842,1.10582,32341.0,32308.0,0.14033567]
[1609747314642,0.10582,32341.0,32308.0,0.14033567]
[1609747315944,0.10582,32341.0,32326.0,0.14033567]
[1609747316643,0.10582,32341.0,32307.0,0.14806]
[1609747317844,0.10582,32341.0,32329.0,0.14033567]
[1609747318042,1.0,32356.0,32329.0,0.14033567]
[1609747318745,2.79380795,32378.0,32329.0,0.14033567]
[1609747319946,2.79380795,32378.0,32346.0,0.14033567]
[1609747320547,2.79380795,32378.0,32327.0,4.2154]
[1609747320747,2.93303795,32378.0,32327.0,4.2154]
[1609747321547,2.93303795,32378.0,32314.0,0.1016]
[1609747321946,2.93303795,32378.0,32338.0,0.14033567]
[1609747322149,2.93303795,32378.0,32314.0,0.1016]
[1609747322953,0.2733,32377.0,32314.0,0.1016]
[1609747323152,2.7919474,32372.0,32314.0,0.1016]
[1609747323754,2.7919474,32372.0,32308.0,0.1771]
[1609747323954,0.2733,32377.0,32338.0,0.14033567]
[1609747325558,0.13923,32378.0,32338.0,0.14033567]
[1609747325754,2.80885889,32396.0,32338.0,0.14033567]
[1609747325954,2.80885889,32396.0,32367.0,0.14033567]
[1609747326154,2.80885889,32396.0,32331.0,0.09721]
[1609747326354,2.90597889,32396.0,32331.0,0.09721]
[1609747327154,0.09712,32396.0,32331.0,0.09721]
[1609747328056,0.09712,32396.0,32371.0,0.14033567]
[1609747329157,0.09712,32396.0,32345.0,0.11803]
[1609747329958,0.14033567,32352.0,32350.0,0.14033567]
[1609747330158,0.15995,32361.0,32350.0,0.14033567]
[1609747331960,0.14033567,32372.0,32360.0,0.14033567]
[1609747332361,0.09712,32396.0,32360.0,0.14033567]
[1609747332561,2.80194953,32410.0,32360.0,0.24940567]
[1609747332761,17.9064,32723.0,32362.0,5.0951]
[1609747332762,2.80109463,32416.0,32362.0,5.0951]
[1609747333362,0.2785,32423.0,32362.0,5.0951]
[1609747333963,0.2785,32423.0,32403.0,0.14033567]
[1609747334163,0.2785,32423.0,32374.0,0.13877]
[1609747334363,0.2785,32423.0,32374.0,0.82617]
[1609747334565,0.15779,32423.0,32374.0,0.82617]
[1609747337766,0.15779,32423.0,32374.0,0.13877]
[1609747337966,0.14033567,32375.0,32374.0,0.13877]
[1609747338168,0.14033567,32375.0,32369.0,0.14033567]
[1609747338169,0.14033567,32375.0,32360.0,0.10907]
[1609747338367,0.27742567,32375.0,32353.0,0.14708]
[1609747338567,0.27742567,32375.0,32350.0,3.5053]
[1609747339968,0.13709,32375.0,32374.0,0.14033567]
[1609747341169,0.13709,32375.0,32356.0,0.15616]
[1609747341971,0.14033567,32368.0,32366.0,0.14033567]
[1609747343071,0.13709,32375.0,32366.0,0.14033567]
[1609747343273,0.13709,32375.0,32356.0,0.15616]
[1609747343471,0.13787,32384.0,32356.0,0.15616]
[1609747343672,0.297,32403.0,32356.0,0.15616]
[1609747344273,0.297,32403.0,32362.0,4.4463]
[1609747346079,0.297,32403.0,32390.0,0.14033567]
[1609747346277,0.297,32403.0,32368.0,0.1423]
[1609747346478,0.45796,32403.0,32368.0,0.1423]
[1609747346977,0.16096,32403.0,32368.0,0.1423]
[1609747348079,0.16096,32403.0,32399.0,0.14033567]
[1609747348480,0.16096,32403.0,32368.0,0.1423]
[1609747349982,0.80816,32403.0,32368.0,0.1423]
[1609747350183,0.14033567,32369.0,32368.0,0.1423]
[1609747350585,0.10137,32386.0,32368.0,0.1423]
[1609747351287,0.10137,32386.0,32356.0,0.15616]
[1609747351485,0.10137,32386.0,32367.0,0.13017]
[1609747351986,0.10137,32386.0,32371.0,0.14033567]
[1609747352586,0.16096,32403.0,32371.0,0.14033567]
[1609747352786,0.2769,32420.0,32371.0,0.14033567]
[1609747353888,0.2778,32421.0,32371.0,0.14033567]
[1609747354087,0.2778,32421.0,32389.0,0.14033567]
[1609747355988,0.2778,32421.0,32395.0,0.14033567]
[1609747356188,0.2778,32421.0,32388.0,0.13024]
[1609747357589,0.2778,32421.0,32367.0,0.13017]
[1609747357790,0.2778,32421.0,32356.0,4.9438]
[1609747358089,0.2778,32421.0,32386.0,0.14033567]
[1609747358491,0.2778,32421.0,32385.0,0.15719]
[1609747358691,1.0,32410.0,32385.0,0.15719]
[1609747358891,1.10987,32410.0,32385.0,0.15719]
[1609747360095,1.10987,32410.0,32390.0,0.14033567]
[1609747360295,1.10987,32410.0,32385.0,0.15719]
[1609747360696,0.10987,32410.0,32385.0,0.15719]
[1609747360897,0.10987,32410.0,32355.0,4.7065]
[1609747362098,0.14033567,32371.0,32370.0,0.14033567]
[1609747362500,0.14033567,32371.0,32355.0,4.7065]
[1609747362700,0.14033567,32371.0,32346.0,0.5304]
[1609747364100,0.2907,32391.0,32362.0,0.14033567]
[1609747364300,0.2907,32391.0,32362.0,0.13151]
[1609747366200,0.14033567,32363.0,32362.0,0.13151]
[1609747369505,0.14033567,32363.0,32346.0,0.5304]
[1609747370203,0.12656,32382.0,32358.0,0.14033567]
[1609747370404,0.12656,32382.0,32358.0,0.29953567]
[1609747370903,0.12656,32382.0,32358.0,0.1592]
[1609747372009,0.2907,32391.0,32346.0,0.5304]
[1609747372205,0.14033567,32347.0,32346.0,0.5304]
[1609747373707,0.11114,32367.0,32346.0,0.5304]
[1609747374210,0.14033567,32355.0,32353.0,0.14033567]
[1609747374408,0.14033567,32355.0,32346.0,0.5304]
[1609747376210,0.14033567,32347.0,32346.0,0.5304]
[1609747376810,0.14033567,32347.0,32345.0,0.11803]
[1609747377011,0.14033567,32347.0,32316.0,4.5104]
[1609747378210,0.14033567,32325.0,32324.0,0.14033567]
[1609747378711,0.10731,32352.0,32324.0,0.27158567]
[1609747379711,0.12717,32360.0,32324.0,0.27158567]
[1609747380212,0.12717,32360.0,32344.0,0.14033567]
[1609747380412,0.12717,32360.0,32344.0,0.27979567]
[1609747380612,0.11114,32367.0,32344.0,0.27979567]
[1609747380812,0.2789,32393.0,32344.0,0.79009567]
[1609747381012,0.2789,32393.0,32345.0,0.1771]
[1609747381412,0.2789,32393.0,32348.0,4.3713]
[1609747381613,0.2789,32393.0,32345.0,0.1771]
[1609747382314,0.39173,32393.0,32358.0,0.14033567]
[1609747382513,0.39173,32393.0,32358.0,0.24126567]
[1609747382713,0.39173,32393.0,32358.0,0.10093]
[1609747383114,1.04693,32393.0,32358.0,0.10093]
[1609747384314,0.14033567,32359.0,32358.0,0.10093]
[1609747384513,0.14033567,32359.0,32345.0,0.1771]
[1609747386314,0.15507,32369.0,32345.0,0.1771]
[1609747386315,0.14033567,32355.0,32350.0,0.14033567]
[1609747386517,0.15507,32369.0,32350.0,0.14033567]
[1609747386715,3.25766418,32393.0,32350.0,0.14033567]
[1609747386916,0.39173,32393.0,32350.0,0.14033567]
[1609747387716,0.39173,32393.0,32345.0,0.1771]
[1609747388416,0.14033567,32346.0,32344.0,0.13946]
[1609747388616,0.14033567,32346.0,32325.0,0.1771]
[1609747390317,0.14033567,32346.0,32345.0,0.14033567]
[1609747390718,0.14457,32372.0,32345.0,0.28027567]
[1609747391317,4.6369,32391.0,32345.0,0.28027567]
[1609747391518,4.6369,32391.0,32346.0,0.5331]
[1609747392318,4.6369,32391.0,32359.0,0.14033567]
[1609747392517,4.6369,32391.0,32359.0,0.25014567]
[1609747392717,4.6369,32391.0,32359.0,0.10981]
[1609747394319,0.14033567,32360.0,32359.0,0.10981]
[1609747397419,0.14033567,32360.0,32357.0,0.14033567]
[1609747398521,0.14033567,32360.0,32346.0,1.0635]
[1609747400425,0.143,32375.0,32356.0,0.14033567]
[1609747400625,4.6369,32391.0,32356.0,0.27368567]
[1609747401023,0.2796,32392.0,32356.0,0.27368567]
[1609747401523,0.2796,32392.0,32356.0,0.13335]
[1609747402524,0.14033567,32357.0,32356.0,0.13335]
[1609747405726,0.14033567,32357.0,32349.0,0.14033567]
[1609747405927,0.14033567,32357.0,32346.0,1.0635]
[1609747406528,0.14033567,32347.0,32346.0,1.0635]
[1609747408329,4.4398,32376.0,32346.0,1.0635]
[1609747408529,0.14033567,32351.0,32348.0,0.14033567]
[1609747408730,0.14033567,32351.0,32346.0,1.0635]
[1609747409130,0.14033567,32351.0,32346.0,0.356]
[1609747410533,0.14033567,32347.0,32346.0,0.356]
[1609747424150,4.8084,32388.0,32346.0,0.356]
[1609747424351,4.8084,32388.0,32346.0,0.49734]
[1609747424548,0.14033567,32356.0,32351.0,0.14033567]
[1609747424949,0.14033567,32356.0,32347.0,0.1771]
[1609747425949,0.14033567,32356.0,32346.0,0.49734]
[1609747426549,0.14033567,32347.0,32346.0,0.49734]
[1609747427453,0.14033567,32347.0,32346.0,0.14134]
[1609747427653,0.14033567,32347.0,32327.0,4.9867]
[1609747428564,0.13905,32356.0,32339.0,0.14033567]
[1609747428765,0.13905,32356.0,32339.0,0.28404567]
[1609747428955,0.13905,32356.0,32339.0,4.78394567]